[Event "Presidents Day IM-Norm 2024"]
[Site "Santa Clara"]
[Date "2024.02.17"]
[Round "2.2"]
[White "Stevens, Adam B"]
[Black "Guo, Ethan"]
[Result "1/2-1/2"]
[ECO "E14"]
[WhiteElo "1878"]
[BlackElo "2099"]
[Annotator "NA RC"]
[PlyCount "166"]
[EventDate "2024.02.13"]
[EventType "tourn"]
[EventCountry "USA"]
[SourceTitle "playchess.com"]
[Source "ChessBase"]
[SourceQuality "1"]
[TimeControl "5400+30"]

1. d4 {[%emt 0:00:01]} Nf6 {[%emt 1:31:00]} 2. c4 {[%emt 0:00:18]} e6 {[%emt 0:00:00]} 3. Nf3 {[%emt 0:00:09]} Bb4+ {[%emt 0:00:00]} 4. Nbd2 {[%emt 0:01:12]} b6 {[%emt 0:00:00]} 5. a3 {[%emt 0:00:36]} Bxd2+ {[%emt 0:00:00]} 6. Qxd2 {[%emt 0:04:40]} Bb7 {[%emt 0:00:00]} 7. e3 {[%emt 0:01:08]} O-O {[%emt 0:00:00]} 8. Be2 {[%emt 0:03:20]} d6 {[%emt 0:00:00]} 9. O-O {[%emt 0:01:55]} c5 {[%emt 0:00:00]} 10. b4 {[%emt 0:06:24]} Qe7 {[%emt 0:00:00]} 11. Bb2 {[%emt 0:02:14]} Nbd7 {[%emt 0:00:00]} 12. Rfd1 {[%emt 0:03:10]} Rfd8 {[%emt 0:00:00]} 13. Qc2 {[%emt 0:07:56]} Rac8 {[%emt 0:00:00]} 14. dxc5 {[%emt 1:04:27]} dxc5 {[%emt 0:00:00]} 15. b5 {[%emt 0:00:00]} e5 {[%emt 0:00:00]} 16. Qf5 {[%emt 0:00:00]} Be4 {[%emt 0:00:00]} 17. Qh3 {[%emt 0:00:00]} h6 {[%emt 0:00:00]} 18. a4 {[%emt 0:00:00]} Bxf3 {[%emt 0:00:00]} 19. Bxf3 {[%emt 0:00:00]} Nf8 {[%emt 0:00:00]} 20. Bc6 {[%emt 0:00:00]} a5 {[%emt 0:00:00]} 21. e4 {[%emt 0:00:00]} Rxd1+ {[%emt 0:00:00]} 22. Rxd1 {[%emt 0:00:00]} Rd8 {[%emt 0:00:00]} 23. Rxd8 {[%emt 0:00:00]} Qxd8 {[%emt 0:00:00]} 24. Bd5 {[%emt 0:00:00]} Nxd5 {[%emt 0:00:00]} 25. exd5 {[%emt 0:00:00]} Qg5 {[%emt 0:00:00]} 26. Qc3 {[%emt 0:00:00]} Nd7 {[%emt 0:00:00]} 27. h3 {[%emt 0:00:00]} Kf8 {[%emt 0:00:00]} 28. Qd3 {[%emt 0:00:00]} g6 {[%emt 0:00:00]} 29. g3 {[%emt 0:00:00]} h5 {[%emt 0:00:00]} 30. h4 {[%emt 0:00:00]} Qg4 {[%emt 0:00:00]} 31. Kg2 {[%emt 0:00:00]} Qf5 {[%emt 0:00:00]} 32. Qe2 {[%emt 0:00:00]} Ke7 {[%emt 0:00:00]} 33. f3 {[%emt 0:00:00]} Kd6 {[%emt 0:00:00]} 34. Qe4 {[%emt 0:00:00]} Qxe4 {[%emt 0:00:00]} 35. fxe4 {[%emt 0:00:00]} f5 {[%emt 0:00:00]} 36. Kf3 {[%emt 0:00:00]} Nf6 {[%emt 0:00:00]} 37. exf5 {[%emt 0:00:00]} gxf5 {[%emt 0:00:00]} 38. Bc3 {[%emt 0:00:00]} Ne4 {[%emt 0:00:00]} 39. Be1 {[%emt 0:00:00]} Ke7 {[%emt 0:00:00]} 40. Ke3 {[%emt 0:00:00]} Nd6 {[%emt 0:00:00]} 41. Kd3 {[%emt 0:00:00]} e4+ {[%emt 0:00:00]} 42. Kc3 {[%emt 0:00:00]} f4 {[%emt 0:00:00]} 43. gxf4 {[%emt 0:00:00]} Kf6 {[%emt 0:00:00]} 44. Bg3 {[%emt 0:00:00]} Kf5 {[%emt 0:00:00]} 45. Bh2 {[%emt 0:00:00]} Ne8 {[%emt 0:00:00]} 46. Kd2 {[%emt 0:00:00]} Nf6 {[%emt 0:00:00]} 47. Ke2 {[%emt 0:00:00]} Ne8 {[%emt 0:00:00]} 48. Kd2 {[%emt 0:00:00]} Nd6 {[%emt 0:00:00]} 49. Kc3 {[%emt 0:00:00]} (49. Ke2 {[%emt 0:01:00]}) 49... e3 {[%emt 0:00:00]} 50. Kd3 {[%emt 0:00:00]} e2 {[%emt 0:00:00]} 51. Kxe2 $19 {[%emt 0:00:00]} Nxc4 {[%emt 0:00:00]} 52. Kd3 {[%emt 0:00:08]} Nd6 {[%emt 0:00:00]} 53. Ke2 {[%emt 0:00:30]} Ne8 {[%emt 0:00:00]} 54. Kd3 {[%emt 0:00:30]} Nf6 {[%emt 0:00:00]} 55. Kc4 {[%emt 0:00:30]} Ne8 {[%emt 0:00:00]} 56. Kd3 {[%emt 0:00:30]} Nd6 {[%emt 0:00:00]} 57. Ke3 {[%emt 0:00:30]} Ne4 {[%emt 0:00:00]} 58. Kd3 {[%emt 0:00:30]} Nf2+ {[%emt 0:00:00]} 59. Ke2 {[%emt 0:00:30]} Ng4 {[%emt 0:00:00]} 60. Bg3 {[%emt 0:00:30]} Nf6 {[%emt 0:00:00]} 61. d6 {[%emt 0:00:30]} Ke6 {[%emt 0:00:00]} 62. Kd3 {[%emt 0:00:30]} Kf5 {[%emt 0:04:11]} 63. Ke2 {[%emt 0:18:26]} Ke6 {[%emt 0:05:45]} 64. Kd3 {[%emt 0:00:37]} Kxd6 {[%emt 0:00:30]} 65. f5+ {[%emt 0:00:30]} Kd7 {[%emt 0:00:30]} 66. Kc4 {[%emt 0:00:30]} Ne4 {[%emt 0:00:30]} 67. Be1 {[%emt 0:00:30]} Nd6+ {[%emt 0:00:30]} 68. Kd5 {[%emt 0:00:30]} Nxf5 {[%emt 0:00:30]} 69. Ke5 {[%emt 0:00:30]} Ne3 {[%emt 0:00:30]} 70. Kf6 {[%emt 0:00:30]} c4 {[%emt 0:00:30]} 71. Kg5 {[%emt 0:00:30]} Ng2 {[%emt 0:00:30]} 72. Bd2 {[%emt 0:00:30]} Ke6 {[%emt 0:00:30]} 73. Kxh5 {[%emt 0:00:30]} Kf5 {[%emt 0:00:30]} 74. Bc3 {[%emt 0:00:30]} Nf4+ {[%emt 0:00:30]} 75. Kh6 {[%emt 0:00:30]} Nd5 {[%emt 0:00:30]} 76. Be1 {[%emt 0:00:30]} c3 {[%emt 0:00:30]} 77. h5 {[%emt 0:00:30]} c2 {[%emt 0:00:30]} 78. Bd2 {[%emt 0:00:30]} Nf4 {[%emt 0:00:30]} 79. Bc1 {[%emt 0:00:30]} Ke4 {[%emt 0:00:30]} 80. Kg5 {[%emt 0:00:30]} Nxh5 {[%emt 0:00:30]} 81. Kxh5 {[%emt 0:00:30]} Kd4 {[%emt 0:00:30]} 82. Kg4 {[%emt 0:00:30]} Kc4 {[%emt 0:00:30]} 83. Kf3 {[%emt 0:00:30]} Kb3 {[%emt 0:00:30]} 1/2-1/2

[Event "Presidents Day IM-Norm 2024"]
[Site "Santa Clara"]
[Date "2024.02.16"]
[Round "2.3"]
[White "Cardoso Cardoso, Jose Gabriel"]
[Black "Vatsal Singhania"]
[Result "1-0"]
[ECO "B66"]
[WhiteElo "2477"]
[BlackElo "2252"]
[Annotator "TA"]
[PlyCount "75"]
[EventDate "2024.02.13"]
[EventType "tourn"]
[EventCountry "USA"]
[SourceTitle "playchess.com"]
[Source "ChessBase"]
[SourceQuality "1"]
[TimeControl "5400+30"]

{[%evp 22,75,25,24,34,18,4,0,34,29,21,31,31,19,46,0,0,0,19,-41,0,0,0,0,0,0,0,0,0,0,0,10,138,143,273,295,291,259,575,395,382,359,461,488,488,503,495,365,973,978,1778,1493,1807,1632,29993,29994]} 1. e4 {[%emt 0:00:11]} c5 {[%emt 0:00:05]} 2. Nf3 {[%emt 0:00:17]} d6 {[%emt 0:00:05]} 3. d4 {[%emt 0:00:10]} cxd4 {[%emt 0:00:06]} 4. Nxd4 {[%emt 0:00:08]} Nf6 {[%emt 0:00:04]} 5. Nc3 {[%emt 0:00:09]} Nc6 {[%emt 0:00:04]} 6. Bg5 {[%emt 0:00:12]} e6 {[%emt 0:00:04]} 7. Qd2 {[%emt 0:00:07]} a6 {[%emt 0:00:03]} 8. O-O-O {[%emt 0:00:08]} Bd7 {[%emt 0:00:02]} 9. Kb1 {[%emt 0:00:25]} h6 {[%emt 0:06:00]} 10. Be3 {[%emt 0:03:41]} b5 {[%emt 0:04:13][%cal Bb7b5,Bb5b4][%mdl 32]} 11. Nxc6 {[%emt 0:01:23]} Bxc6 {[%emt 0:00:40]} 12. f3 {[%emt 0:00:07]} Qc7 {[%emt 0:05:30]} 13. Bd3 {[%emt 0:03:36]} Be7 {[%emt 0:18:43]} 14. h4 {[%emt 0:08:56]} h5 {[%emt 0:03:32] The position is equal.} (14... d5 $5) 15. Bg5 {[%emt 0:01:43]} b4 {[%emt 0:05:12]} 16. Ne2 {[%emt 0:00:12]} a5 {[%emt 0:00:05]} 17. Nd4 {[%emt 0:01:42]} Bd7 {[%emt 0:00:05]} 18. Bb5 {[%emt 0:14:34]} (18. c4 $14) 18... O-O $1 $11 {[%emt 0:07:01]} 19. Qe2 {[%emt 0:04:39]} Rfc8 {[%emt 0:03:49]} 20. g4 {[%emt 0:06:32]} (20. f4 $11) 20... a4 {[%emt 0:05:14]} 21. Bxd7 {[%emt 0:02:14]} Qxd7 {[%emt 0:00:54]} 22. gxh5 {[%emt 0:01:45]} a3 {[%emt 0:02:47] [#] ...axb2 would now be deadly.} 23. b3 {[%emt 0:00:11] Strongly threatening h6.} (23. h6 $2 axb2 24. Kxb2 (24. hxg7 Qa4) 24... Qa7 $19) 23... Nxh5 {[%emt 0:06:00]} 24. Rhg1 {[%emt 0:01:26] Repels Ng3} Ra5 {[%emt 0:05:03]} 25. Qd2 $1 {[%emt 0:18:38]} Bxg5 $1 {[%emt 0:11:18]} 26. hxg5 {[%emt 0:01:32]} Rac5 {[%emt 0:01:10]} (26... Qc7 $1 $11 {remains equal.}) 27. Qxb4 $16 {[%emt 0:09:44]} e5 {[%emt 0:02:30]} (27... g6 $16) 28. Nf5 $18 {[%emt 0:00:08]} Rxc2 {[%emt 0:00:16]} 29. Qxa3 {[%emt 0:00:09][%cal Og1h1] Threatens to win with Rh1! Active counter play!} Rf2 $2 {[%emt 0:00:57]} (29... Rh2 {is tougher.} 30. Rh1 (30. Qxd6 $2 {perishes.} Qa7 $19) (30. Rxd6 Qb7 $18) (30. Nxd6 Rcc2 $16) 30... Rxh1 31. Rxh1 Nf4 32. Qxd6 Qxd6 33. Nxd6 Rc3) 30. Rxd6 {[%emt 0:01:03]} (30. Nxd6 Rcc2 $14) 30... Qb7 {[%emt 0:02:29][%cal Oc8a8]} 31. g6 {[%emt 0:03:27]} Rxf3 {[%emt 0:03:24]} 32. gxf7+ {[%emt 0:01:45]} Kxf7 {[%emt 0:00:46]} 33. Qa4 {[%emt 0:02:26]} ({Don't go for} 33. Rd5 $2 Rxf5 34. Qd6 Nf6 35. Rxe5 Rxe5 (35... Nxe4 36. Qe6+ Kf8 37. Rxf5+ Nf6 38. Rxf6+ gxf6 39. Rg8#) 36. Qxe5 Qxe4+ 37. Qxe4 Nxe4 $19) 33... Rc7 {[%emt 0:00:27] Dodges Rd7+} 34. Rdg6 {[%emt 0:09:32] And now Nd6+ would win.} Kf8 $2 {[%emt 0:00:30]} (34... Rxf5 35. exf5 Qd5) 35. Rd1 {[%emt 0:00:59]} Qb8 {[%emt 0:01:49] Against Rd8+} 36. Rgd6 {[%emt 0:00:48]} Rc8 {[%emt 0:01:07] Prevents Rd8+} 37. Qa3 {[%emt 0:01:20]} Ke8 {[%emt 0:01:04] [#] Prevents Rd8+} 38. Rd8+ $3 {[%emt 0:00:31][%mdl 512] Weighted Error Value: White=0.31/Black=0.71.  Mistake:       	White=2     	Black=4      Inaccurate:     	White=1     	Black=3      OK:         	White=8     	Black=7      Best:        	White=3     	---        Strong:       	White=1     	Black=2} 1-0

[Event "Presidents Day IM-Norm 2024"]
[Site "Santa Clara"]
[Date "2024.02.16"]
[Round "2.4"]
[White "Yim, Sung Ho"]
[Black "Raja Harshit"]
[Result "1/2-1/2"]
[ECO "E39"]
[WhiteElo "2243"]
[BlackElo "2508"]
[Annotator "TA"]
[PlyCount "40"]
[EventDate "2024.02.13"]
[EventType "tourn"]
[EventCountry "USA"]
[SourceTitle "playchess.com"]
[Source "ChessBase"]
[SourceQuality "1"]
[TimeControl "5400+30"]

{[%evp 14,40,44,41,50,51,84,32,37,10,27,31,60,51,126,38,43,49,97,98,79,85,87,77,88,103,81,64,45]} 1. d4 {[%emt 0:00:13]} Nf6 {[%emt 0:10:53]} 2. c4 {[%emt 0:00:07]} e6 {[%emt 0:00:04]} 3. Nc3 {[%emt 0:00:08]} Bb4 {[%emt 0:00:07]} 4. Qc2 {[%emt 0:00:06]} c5 {[%emt 0:03:26]} 5. dxc5 {[%emt 0:00:08]} O-O {[%emt 0:00:51]} 6. a3 {[%emt 0:01:18]} Bxc5 {[%emt 0:00:08]} 7. Nf3 {[%emt 0:00:50]} b6 {[%emt 0:01:52]} 8. Bf4 {[%emt 0:02:49]} Nh5 {[%emt 0:05:02]} 9. Bg5 {[%emt 0:02:04]} f6 {[%emt 0:02:50]} 10. Bh4 {[%emt 0:01:15]} (10. Bd2 $16 {Strongly threatening g4.} f5 11. e4) 10... Bb7 $14 {[%emt 0:01:40]} 11. e3 {[%emt 0:04:34]} Be7 {[%emt 0:10:08]} 12. Rd1 {[%emt 0:05:22]} a6 {[%emt 0:04:33]} 13. Be2 {[%emt 0:13:57]} g5 {[%emt 0:15:50]} (13... Nc6 $14) 14. Nd4 {[%emt 0:05:16]} ({White should play} 14. Bg3 $16) 14... Ng7 {[%emt 0:13:49]} 15. Bg3 {[%emt 0:00:21] Black must now prevent h4.} Nc6 {[%emt 0:07:43]} (15... Bxg2 $14 {feels stronger.} 16. Rg1 Bb7) 16. Nxc6 $16 {[%emt 0:18:05]} Bxc6 {[%emt 0:00:04] [#]} 17. Nd5 $1 {[%emt 0:01:18] Hoping for Nxe7+.} Rf7 {[%emt 0:12:27]} ({Don't play} 17... exd5 18. cxd5 Bb5 19. d6 Bxe2 20. Qxe2 $18 (20. Kxe2 Rc8 $16) (20. dxe7 Qxe7 21. Qxe2 d5 $16)) 18. Bc7 {[%emt 0:07:20] White is much more active.} Qc8 {[%emt 0:00:09]} 19. Nxe7+ {[%emt 0:00:26]} (19. Nxb6 $2 Qxc7 20. Nxa8 Bxa8 $17) 19... Rxe7 {[%emt 0:00:03]} 20. Bd6 {[%emt 0:01:13]} Rf7 {[%emt 0:08:51] Weighted Error Value: White=0.18 (very precise) /Black=0.19 (very precise) .  Mistake:       	White=2     	Black=2      Inaccurate:     	White=1     	Black=2      OK:         	White=6     	Black=4      Best:        	---       	Black=1} 1/2-1/2

[Event "Presidents Day IM-Norm 2024"]
[Site "Santa Clara"]
[Date "2024.02.16"]
[Round "2.5"]
[White "Rodi, Luis Ernesto"]
[Black "Bansal, Advay"]
[Result "1/2-1/2"]
[ECO "B97"]
[WhiteElo "2196"]
[BlackElo "2253"]
[Annotator "TA"]
[PlyCount "55"]
[EventDate "2024.02.13"]
[EventType "tourn"]
[EventCountry "USA"]
[SourceTitle "playchess.com"]
[Source "ChessBase"]
[SourceQuality "1"]
[TimeControl "5400+30"]

{[%evp 20,55,-54,-67,-68,-65,-20,-29,-13,-37,-8,-6,-4,-33,-25,-14,-20,-19,-11,-19,-10,-2,-6,-12,-10,-16,0,0,0,0,0,0,0,0,0,-1066,29999,-1993]} 1. e4 {[%emt 0:03:22]} c5 {[%emt 0:00:08]} 2. Nf3 {[%emt 0:00:07]} d6 {[%emt 0:00:08]} 3. d4 {[%emt 0:00:04]} cxd4 {[%emt 0:00:05]} 4. Nxd4 {[%emt 0:00:04]} Nf6 {[%emt 0:00:09]} 5. Nc3 {[%emt 0:00:05]} a6 {[%emt 0:00:08]} 6. Bg5 {[%emt 0:00:23]} e6 {[%emt 0:00:08]} 7. f4 {[%emt 0:00:06]} Qb6 {[%emt 0:00:07]} 8. Qd2 {[%emt 0:00:06]} Qxb2 {[%emt 0:00:07]} 9. Rb1 {[%emt 0:00:04]} Qa3 {[%emt 0:00:06]} 10. e5 {[%emt 0:00:10]} h6 {[%emt 0:00:20]} 11. Bh4 {[%emt 0:00:14][%cal Bg5h4,Bh4f2,Bf2g3][%mdl 32]} dxe5 {[%emt 0:00:12]} 12. fxe5 {[%emt 0:00:07]} g5 {[%emt 0:00:05]} 13. Bf2 {[%emt 0:01:02]} Ng4 {[%emt 0:00:07][%cal Og4f2] [#] Strongly threatening ...Nxf2! Black has an edge.} 14. Bg3 {[%emt 0:00:13]} Bg7 {[%emt 0:00:08][%cal Oe8g8]} (14... Nd7 $5) 15. Bb5+ {[%emt 0:01:37]} Bd7 {[%emt 0:01:19]} 16. Bxd7+ {[%emt 0:00:43]} Nxd7 {[%emt 0:00:06]} 17. Rb3 $1 {[%emt 0:00:08]} Qa5 {[%emt 0:02:25] ...Nc5 would now be deadly.} 18. Rxb7 {[%emt 0:00:15]} Ngxe5 {[%emt 0:02:01] aiming for ...Rc8.} (18... Ndxe5 $6 19. Nc6 $16 (19. Nxe6 $2 Nf3+ 20. gxf3 Bxc3 $19) (19. Nxe6 $2 Nf3+ 20. gxf3 Bxc3 $19)) 19. Nc6 $1 {[%emt 0:00:40]} Nf3+ {[%emt 0:00:14]} (19... Nxc6 20. Qxd7+ Kf8 21. Qxf7#) (19... Qc5 $6 20. Nxe5 Nxe5 21. Ne4 $18) 20. gxf3 {[%emt 0:00:06]} Qxc3 {[%emt 0:00:08]} 21. Rxd7 {[%emt 0:00:41]} (21. Qxc3 {simplifies} Bxc3+ 22. Ke2 Rc8 23. Na7) 21... Qxc6 {[%emt 0:00:07]} 22. Rc7 {[%emt 0:00:11]} Qxf3 {[%emt 0:03:57]} 23. Qd7+ $1 $40 {[%emt 0:18:00][%mdl 128] White mounts an attack.} Kf8 {[%emt 0:00:16] And now ...Bc3+ would win.} 24. Rc8+ {[%emt 0:23:39]} Rxc8 {[%emt 0:00:04]} 25. Qxc8+ {[%emt 0:00:05]} Ke7 {[%emt 0:00:02]} 26. Qc7+ {[%emt 0:00:09]} Ke8 $1 {[%emt 0:00:02] ...Bc3+ is the strong threat.} (26... Kf6 $2 27. Rf1 $18) 27. Kd2 {[%emt 0:51:39][%mdl 8192]} Kf8 $4 {[%emt 1:31:21][%mdl 8192] [#]} (27... Qg2+ $19 28. Ke3 Qxh1) 28. Qd7 $4 {[%mdl 40960] Weighted Error Value: White=0.32/Black=0.49.  Loses game:     	White=1     	---        Missed win:     	White=1     	Black=1      Inaccurate:     	---       	Black=2      OK:         	White=7     	Black=6      Best:        	White=3     	Black=1      Strong:       	White=3     	Black=1     . An unexpected result.} 1/2-1/2

[Event "Presidents Day IM-Norm 2024"]
[Site "Santa Clara"]
[Date "2024.02.17"]
[Round "3.1"]
[White "Bansal, Advay"]
[Black "Yan, Nathan"]
[Result "1-0"]
[ECO "C54"]
[WhiteElo "2253"]
[BlackElo "2311"]
[Annotator "RC"]
[PlyCount "74"]
[EventDate "2024.02.13"]
[EventType "tourn"]
[EventCountry "USA"]
[SourceTitle "playchess.com"]
[Source "ChessBase"]
[SourceQuality "1"]
[TimeControl "5400+30"]

1. e4 {[%emt 0:00:01]} e5 {[%emt 0:03:21]} 2. Nf3 {[%emt 0:00:10]} Nc6 {[%emt 0:00:56]} 3. Bc4 {[%emt 0:00:11]} Bc5 {[%emt 0:00:06]} 4. O-O {[%emt 0:00:11]} Nf6 {[%emt 0:00:07]} 5. d3 {[%emt 0:00:05]} O-O {[%emt 0:00:10]} 6. h3 {[%emt 0:00:09]} d6 {[%emt 0:00:06]} 7. c3 {[%emt 0:00:07]} a5 {[%emt 0:00:07]} 8. Re1 {[%emt 0:00:19]} h6 {[%emt 0:00:07]} 9. Nbd2 {[%emt 0:00:13]} Be6 {[%emt 0:00:17]} 10. Bb5 {[%emt 0:00:07]} Nd7 {[%emt 0:00:40]} 11. Nf1 {[%emt 0:01:24]} f5 {[%emt 0:00:51]} 12. exf5 {[%emt 0:00:35]} Bxf5 {[%emt 0:00:12]} 13. Ng3 {[%emt 0:03:47]} Bh7 {[%emt 0:00:33]} 14. Be3 {[%emt 0:11:28]} Bxe3 {[%emt 0:02:22]} 15. Rxe3 {[%emt 0:00:06]} Ne7 {[%emt 0:03:27]} 16. d4 {[%emt 0:06:43]} c6 {[%emt 0:10:43]} 17. Bf1 {[%emt 0:07:28]} Nd5 {[%emt 0:02:47]} 18. Re1 {[%emt 0:04:51]} Qf6 {[%emt 0:05:45]} 19. Ne4 {[%emt 0:16:28]} Bxe4 {[%emt 0:04:57]} 20. Rxe4 {[%emt 0:00:02]} Nf4 {[%emt 0:00:15]} 21. dxe5 {[%emt 0:11:05]} Nxe5 {[%emt 0:09:26]} 22. Nxe5 {[%emt 0:03:47]} dxe5 {[%emt 0:00:04]} 23. Qe1 {[%emt 0:03:05]} Rae8 {[%emt 0:02:41]} 24. g3 {[%emt 0:00:16]} Ne6 {[%emt 0:03:00]} 25. Bg2 {[%emt 0:03:04]} Nc5 {[%emt 0:04:47]} 26. Re3 {[%emt 0:00:19]} e4 {[%emt 0:12:21]} 27. Qe2 {[%emt 0:00:30]} Qf5 {[%emt 0:01:01]} 28. Rd1 {[%emt 0:05:43]} Re5 {[%emt 0:08:46]} 29. Rd4 {[%emt 0:03:41]} Kh8 {[%emt 0:09:06]} 30. b4 {[%emt 0:02:57]} axb4 {[%emt 0:01:27]} 31. cxb4 {[%emt 0:00:05]} Nd3 {[%emt 0:00:52]} 32. Rexe4 {[%emt 0:01:02]} Rxe4 {[%emt 0:00:12]} 33. Bxe4 {[%emt 0:00:05]} Qxf2+ {[%emt 0:00:08]} 34. Qxf2 {[%emt 0:00:05]} Nxf2 {[%emt 0:00:03]} 35. Bg2 {[%emt 0:00:03]} Nxh3+ {[%emt 0:03:48]} 36. Bxh3 {[%emt 0:00:03]} Rf3 {[%emt 0:00:06]} 37. Kg2 {[%emt 0:00:10]} Ra3 {[%emt 0:00:08]} 1-0

[Event "Presidents Day IM-Norm 2024"]
[Site "Santa Clara"]
[Date "2024.02.17"]
[Round "3.2"]
[White "Raja Harshit"]
[Black "Rodi, Luis Ernesto"]
[Result "1/2-1/2"]
[ECO "C72"]
[WhiteElo "2508"]
[BlackElo "2196"]
[Annotator "RC"]
[PlyCount "114"]
[EventDate "2024.02.13"]
[EventType "tourn"]
[EventCountry "USA"]
[SourceTitle "playchess.com"]
[Source "ChessBase"]
[SourceQuality "1"]
[TimeControl "5400+30"]

1. e4 {[%emt 0:00:07]} e5 {[%emt 0:00:24]} 2. Nf3 {[%emt 0:00:05]} Nc6 {[%emt 0:00:08]} 3. Bb5 {[%emt 0:00:05]} a6 {[%emt 0:00:14]} 4. Ba4 {[%emt 0:00:05]} d6 {[%emt 0:00:06]} 5. O-O {[%emt 0:00:26]} Bg4 {[%emt 0:00:07]} 6. h3 {[%emt 0:01:02]} h5 {[%emt 0:00:12]} 7. c4 {[%emt 0:01:15]} Qf6 {[%emt 0:01:24]} 8. Qb3 {[%emt 0:00:11]} O-O-O {[%emt 0:00:21]} 9. Bxc6 {[%emt 0:00:04]} bxc6 {[%emt 0:00:06]} 10. Nh2 {[%emt 0:00:04]} Qg6 {[%emt 0:00:29]} 11. d4 {[%emt 0:00:15]} exd4 {[%emt 0:01:24]} 12. Nd2 {[%emt 0:02:24]} Be2 {[%emt 0:07:26]} 13. Re1 {[%emt 0:01:48]} d3 {[%emt 0:00:08]} 14. Qa4 {[%emt 0:01:23]} d5 {[%emt 0:03:58]} 15. Qxa6+ {[%emt 0:03:19]} Kd7 {[%emt 0:00:11]} 16. Nhf3 {[%emt 0:00:20]} Re8 {[%emt 0:14:08]} 17. cxd5 {[%emt 0:05:26]} cxd5 {[%emt 0:01:01]} 18. Qa4+ {[%emt 0:00:29]} Qc6 {[%emt 0:06:42]} 19. Qxc6+ {[%emt 1:21:12]} Kxc6 20. Nd4+ Kb7 21. Nxe2 dxe2 22. Rxe2 Nf6 23. e5 Nd7 24. Nf3 f6 25. e6 Nc5 26. Nd4 Ne4 27. f3 Bc5 28. fxe4 Bxd4+ 29. Be3 Bxe3+ 30. Rxe3 Rxe6 31. Rb3+ Kc8 32. exd5 Rd6 33. Rd1 Rhd8 34. Rb5 g5 35. a4 h4 36. a5 f5 37. Rc5 g4 38. Kf2 {[%emt 0:00:00]} c6 {[%emt 0:46:40]} 39. hxg4 {[%emt 0:00:00]} fxg4 {[%emt 0:00:15]} 40. Rd4 {[%emt 0:00:00]} g3+ {[%emt 0:25:06]} 41. Kf3 Rf6+ 42. Rf4 Rxf4+ {[%emt 0:00:00]} 43. Kxf4 {[%emt 0:00:00]} Rxd5 {[%emt 0:00:00]} 44. Rxc6+ {[%emt 0:00:00]} Kd7 {[%emt 0:00:00]} 45. Rg6 {[%emt 0:00:00]} Rxa5 {[%emt 0:00:00]} 46. Kg4 {[%emt 0:00:00]} Ra4+ {[%emt 0:03:00]} 47. Kh5 Rb4 48. Rg4 Rxb2 49. Rxh4 Ke6 50. Rf4 Rb3 51. Kg4 Rd3 52. Rf5 Ke7 53. Rf3 Rxf3 54. Kxf3 Kf6 55. Kg4 Kg6 56. Kh4 Kh6 57. Kh3 Kh5 {[%emt 0:00:00]} 1/2-1/2

[Event "Presidents Day IM-Norm 2024"]
[Site "Santa Clara"]
[Date "2024.02.17"]
[Round "3.3"]
[White "Vatsal Singhania"]
[Black "Yim, Sung Ho"]
[Result "1/2-1/2"]
[ECO "C54"]
[WhiteElo "2252"]
[BlackElo "2243"]
[Annotator "TA"]
[PlyCount "73"]
[EventDate "2024.02.13"]
[EventType "tourn"]
[EventCountry "USA"]
[SourceTitle "playchess.com"]
[Source "ChessBase"]
[SourceQuality "1"]
[TimeControl "5400+30"]

{[%evp 18,73,21,15,18,2,25,23,30,23,59,22,24,14,14,14,10,0,0,-11,-11,-15,-10,-27,-16,-17,-10,-81,-46,-54,-24,-26,-23,-14,-19,-55,0,0,6,8,7,8,4,0,20,0,32,0,0,0,0,0,0,0,0,0,6,0]} 1. e4 {[%emt 0:00:02]} e5 {[%emt 0:00:06]} 2. Nf3 {[%emt 0:00:07]} Nc6 {[%emt 0:00:07]} 3. Bc4 {[%emt 0:00:03]} Bc5 {[%emt 0:00:08]} 4. O-O {[%emt 0:00:04]} Nf6 {[%emt 0:00:06]} 5. d3 {[%emt 0:00:02]} d6 {[%emt 0:00:06]} 6. c3 {[%emt 0:00:05]} a6 {[%emt 0:00:21]} 7. Bb3 {[%emt 0:00:53]} Ba7 {[%emt 0:00:57]} 8. Nbd2 {[%emt 0:00:33][%cal Bb1d2,Bd2f1,Bf1g3][%mdl 32]} O-O {[%emt 0:00:22]} 9. Re1 {[%emt 0:00:38]} h6 {[%emt 0:01:26]} 10. Nf1 {[%emt 0:00:11]} Re8 {[%emt 0:00:17]} 11. Be3 {[%emt 0:01:50]} Be6 {[%emt 0:02:15]} 12. Bxa7 {[%emt 0:00:25] [#] And now Bxe6 would win.} Rxa7 {[%emt 0:00:46] White has an edge.} 13. Ng3 {[%emt 0:08:01]} d5 {[%emt 0:03:39]} 14. Qe2 {[%emt 0:07:13]} (14. d4 {is interesting.} dxe4 15. Nxe4 Nxe4 16. d5) 14... Ra8 {[%emt 0:05:10]} 15. h3 {[%emt 0:00:12]} dxe4 {[%emt 0:21:45]} 16. dxe4 {[%emt 0:00:10]} Qe7 {[%emt 0:01:30]} 17. Qe3 {[%emt 0:00:57]} Rad8 {[%emt 0:05:13]} 18. Bxe6 {[%emt 0:04:03]} Qxe6 {[%emt 0:00:12]} 19. Nf5 {[%emt 0:00:07]} Ne7 {[%emt 0:03:11]} 20. N3h4 {[%emt 0:01:22]} Nxf5 {[%emt 0:02:28]} 21. Nxf5 {[%emt 0:03:22]} Kh7 {[%emt 0:00:56]} 22. g4 {[%emt 0:02:40]} (22. b3 $11 {keeps the balance.}) 22... Ng8 {[%emt 0:01:04]} 23. Qc5 {[%emt 0:02:49][%cal Oa1d1]} Rd7 {[%emt 0:10:50]} 24. Rad1 {[%emt 0:03:51]} Red8 {[%emt 0:02:57]} 25. Rxd7 {[%emt 0:02:46]} Rxd7 {[%emt 0:00:06]} 26. b3 {[%emt 0:02:32]} Ne7 {[%emt 0:06:11]} (26... Qf6 $15) 27. Nxe7 $1 $11 {[%emt 0:00:22]} Qxe7 {[%emt 0:01:19]} 28. Qxe7 {[%emt 0:00:34]} Rxe7 {[%emt 0:00:07][%mdl 4096] Endgame. KR-KR} 29. Rd1 {[%emt 0:00:03] Prevents Rd7.} Kg6 {[%emt 0:00:52]} 30. Kg2 {[%emt 0:00:55]} Kf6 {[%emt 0:00:35]} 31. Kf3 {[%emt 0:01:03]} Ke6 {[%emt 0:00:14]} 32. c4 {[%emt 0:02:31]} Rd7 {[%emt 0:02:00] The position is equal.} 33. Rd5 {[%emt 0:00:05]} b6 {[%emt 0:00:52]} 34. b4 {[%emt 0:00:52]} c6 {[%emt 0:00:46]} 35. Rxd7 {[%emt 0:00:44]} Kxd7 {[%emt 0:00:06]} 36. c5 {[%emt 0:00:13]} b5 {[%emt 0:00:23]} 37. h4 {[%emt 0:00:11] Weighted Error Value: White=0.14 (very precise) /Black=0.12 (very precise) .  Mistake:       	White=1     	Black=1      Inaccurate:     	White=3     	Black=4      OK:         	White=5     	Black=7      Strong:       	White=1     	---} 1/2-1/2